bitfinex/quotes_SOLUSD_20240716
["timestamp","ask_amount","ask_price","bid_price","bid_amount"]
[1721096096539,6.3347,157.86,157.85,15.4]
[1721096096862,6.3343,157.87,157.85,15.4]
[1721096097060,6.3349,157.86,157.84,0.03978885]
[1721096097266,6.3349,157.86,157.85,15.4]
[1721096098262,6.3351,157.85,157.84,0.03978885]
[1721096098432,6.3351,157.85,157.84,15.43978885]
[1721096099247,6.3347,157.86,157.84,15.43978885]
[1721096099551,6.3347,157.86,157.85,15.4]
[1721096100140,6.3347,157.86,157.84,0.03978885]
[1721096100560,6.56472277,157.89,157.85,15.4]
[1721096100775,50.8489,157.94,157.84,15.43978885]
[1721096100776,10.0,157.92,157.84,61.63978885]
[1721096100951,10.0,157.92,157.91,15.4]
[1721096101154,16.56368466,157.92,157.91,15.4]
[1721096101357,16.3331,157.9,157.89,15.4]
[1721096101543,10.0,157.88,157.84,0.03978885]
[1721096101750,10.0,157.9,157.87,15.4]
[1721096101751,20.0,157.9,157.87,15.4]
[1721096101959,6.3338,157.89,157.88,15.4]
[1721096102160,6.3331,157.9,157.88,15.4]
[1721096102469,6.56368466,157.92,157.89,15.4]
[1721096102662,6.3331,157.9,157.89,15.4]
[1721096102839,6.56368466,157.92,157.89,15.4]
[1721096103040,6.3322,157.93,157.9,15.4]
[1721096103664,6.3316,157.94,157.91,15.4]
[1721096104079,6.3316,157.94,157.92,15.4]
[1721096104280,6.56264595,157.95,157.93,15.4]
[1721096104446,6.56264595,157.95,157.94,15.4]
[1721096104649,10.0,157.96,157.94,15.4]
[1721096104846,10.0,157.96,157.86,16.501]
[1721096105047,10.0,157.96,157.87,45.0]
[1721096105048,35.4,157.96,157.87,45.0]
[1721096105261,10.0,157.92,157.86,16.501]
[1721096105468,6.3334,157.9,157.88,15.4]
[1721096105675,10.0,157.89,157.84,0.03978885]
[1721096105966,6.3351,157.85,157.84,15.43978885]
[1721096106164,6.3343,157.87,157.84,15.43978885]
[1721096106376,6.3343,157.87,157.86,15.4]
[1721096106546,6.3349,157.86,157.85,15.4]
[1721096106968,6.3343,157.87,157.85,15.4]
[1721096107350,6.3338,157.89,157.86,15.4]
[1721096107669,35.8284,157.95,157.88,15.4]
[1721096107871,15.4,157.94,157.89,15.4]
[1721096109370,35.8284,157.95,157.91,15.4]
[1721096109371,25.8284,157.95,157.91,15.4]
[1721096109578,6.3324,157.92,157.86,17.44150306]
[1721096109779,6.3324,157.92,157.91,15.4]
[1721096110070,6.3319,157.93,157.91,15.4]
[1721096110271,6.56145209,157.98,157.92,15.4]
[1721096110480,6.56145209,157.98,157.95,15.4]
[1721096110782,31.96145209,157.98,157.93,15.4]
[1721096110959,6.3321,157.93,157.92,15.4]
[1721096111147,25.4,157.96,157.91,15.4]
[1721096111349,10.0,157.94,157.89,15.3936]
[1721096111552,25.4,157.94,157.89,30.7936]
[1721096111853,25.4,157.94,157.85,6.4377]
[1721096111854,6.3335,157.89,157.88,15.4]
[1721096112052,6.3331,157.9,157.88,15.4]
[1721096112252,10.0,157.96,157.85,21.8362]
[1721096112253,10.0,157.96,157.89,15.4]
[1721096112466,6.3321,157.93,157.91,15.4]
[1721096112652,10.0,157.96,157.92,15.4]
[1721096112855,6.3317,157.94,157.92,15.4]
[1721096113275,6.56145209,157.98,157.93,15.4]
[1721096113463,6.3311,157.95,157.94,15.4]
[1721096113649,6.3311,157.95,157.93,15.4]
[1721096113853,6.3315,157.94,157.93,15.4]
[1721096114250,6.3315,157.94,157.88,30.85]
[1721096114451,6.3324,157.92,157.88,30.85]
[1721096114976,6.3324,157.92,157.89,45.0]
[1721096115168,6.3324,157.92,157.88,30.85]
[1721096116376,6.3319,157.94,157.89,45.0]
[1721096116985,6.3319,157.93,157.89,45.0]
[1721096117158,32.39352199,157.96,157.85,21.8362]
[1721096117476,32.39352199,157.96,157.85,52.6862]
[1721096117477,6.333,157.91,157.85,52.6862]
[1721096117666,6.3333,157.9,157.85,21.8362]
[1721096118954,6.3336,157.89,157.85,21.8362]
[1721096120050,20.0,157.94,157.85,21.8362]
[1721096120562,20.0,157.92,157.85,21.8362]
[1721096120762,6.3347,157.86,157.84,0.03978885]
[1721096121076,10.0,157.9,157.84,0.03978885]
[1721096121576,6.3347,157.86,157.84,0.03978885]
[1721096121772,15.8318,157.91,157.84,0.03978885]
[1721096122077,10.0,157.92,157.84,0.03978885]
[1721096122280,10.0,157.92,157.84,45.03978885]
[1721096122673,6.3339,157.89,157.84,45.03978885]
[1721096123367,6.3339,157.88,157.84,45.03978885]
[1721096124267,25.8288,157.94,157.84,45.03978885]
[1721096124461,1.91071294,157.93,157.84,45.03978885]
[1721096124668,25.8288,157.94,157.84,45.03978885]
[1721096125378,6.3334,157.9,157.84,45.03978885]
[1721096126587,10.0,157.89,157.84,0.03978885]
[1721096126954,6.3351,157.85,157.84,0.03978885]
[1721096128287,10.0,157.89,157.84,0.03978885]
[1721096129362,6.3351,157.85,157.84,0.03978885]
[1721096129565,10.0,157.89,157.84,0.03978885]
[1721096130155,10.0,157.91,157.84,0.03978885]
[1721096130384,10.0,157.92,157.84,0.03978885]
[1721096130588,6.3339,157.88,157.84,0.03978885]
[1721096131989,6.3344,157.87,157.84,0.03978885]
[1721096132571,6.3347,157.86,157.84,0.03978885]
[1721096132977,6.3343,157.87,157.84,0.03978885]
[1721096133192,6.3347,157.86,157.84,0.03978885]
[1721096133670,6.3343,157.87,157.84,0.03978885]
[1721096134197,6.3348,157.86,157.84,0.03978885]
[1721096134365,6.3348,157.86,157.85,15.44]
[1721096134797,6.3348,157.86,157.84,0.03978885]
[1721096134971,6.3351,157.85,157.84,0.03978885]
[1721096135171,6.3351,157.85,157.84,15.47978885]
[1721096136600,6.3351,157.85,157.84,0.03978885]
[1721096138793,6.3351,157.85,157.84,15.47978885]
[1721096138996,10.0,157.88,157.84,15.47978885]
[1721096138997,6.3347,157.86,157.84,15.47978885]
[1721096139195,6.3339,157.88,157.85,15.44]
[1721096139368,6.3343,157.87,157.86,15.44]
[1721096139784,6.3347,157.86,157.84,0.03978885]
[1721096139989,6.3347,157.86,157.85,15.44]
[1721096141191,6.3343,157.87,157.85,15.44]
[1721096143204,6.3347,157.86,157.85,15.44]
[1721096143500,6.3351,157.85,157.84,0.03978885]
[1721096143705,6.3351,157.85,157.84,15.47978885]
[1721096143908,6.5700504,157.9,157.84,15.47978885]
[1721096144117,6.3335,157.89,157.87,15.44]
[1721096144406,6.3335,157.89,157.86,15.44]
[1721096145101,6.334,157.88,157.86,15.44]
[1721096145399,32.0100504,157.9,157.84,0.03978885]
[1721096145607,6.3351,157.85,157.84,15.47978885]
[1721096145789,6.3351,157.85,157.84,0.03978885]
[1721096148915,6.57451226,157.86,157.84,0.03978885]
[1721096149100,6.57451226,157.86,157.84,15.47978885]
[1721096149282,6.3351,157.85,157.84,15.47978885]
[1721096149485,6.3351,157.85,157.84,0.03978885]
[1721096154909,31.7751,157.85,157.84,0.03978885]
[1721096155114,47.6129,157.85,157.84,0.03978885]
[1721096155719,16.3351,157.85,157.84,0.03978885]
[1721096156420,31.7751,157.85,157.84,0.03978885]
[1721096157110,16.3351,157.85,157.84,0.03978885]
[1721096159207,31.7751,157.85,157.84,0.03978885]
[1721096160105,16.3351,157.85,157.84,0.03978885]
[1721096160314,6.3351,157.85,157.84,0.03978885]
[1721096163603,16.3351,157.85,157.84,0.03978885]
[1721096164222,26.3351,157.85,157.84,0.03978885]
[1721096164524,43.69237613,157.85,157.84,0.03978885]
[1721096165016,63.69237613,157.85,157.84,0.03978885]
[1721096165401,63.69237613,157.85,157.84,8.885e-05]
[1721096166112,63.69296075,157.85,157.84,8.885e-05]
[1721096167130,43.69296075,157.85,157.84,8.885e-05]
[1721096167305,63.69296075,157.85,157.84,8.885e-05]
[1721096168025,43.69296075,157.85,157.84,8.885e-05]
[1721096169117,88.69296075,157.85,157.84,8.885e-05]
[1721096169321,88.69325124,157.85,157.84,8.885e-05]
[1721096169629,28.25325124,157.85,157.84,8.885e-05]
[1721096169801,18.25325124,157.85,157.84,8.885e-05]
[1721096170213,16.3351,157.85,157.84,8.885e-05]
[1721096171124,38.34683074,157.85,157.84,8.885e-05]
[1721096171636,50.26413706,157.85,157.84,8.885e-05]
[1721096171801,95.26413706,157.85,157.84,8.885e-05]
[1721096172236,42.1757,157.83,157.82,4.935e-05]
[1721096172404,102.6157,157.83,157.82,4.935e-05]
[1721096172605,123.55357657,157.83,157.82,4.935e-05]
[1721096174037,108.11357657,157.83,157.82,4.935e-05]
[1721096174254,104.53357657,157.83,157.82,4.935e-05]
[1721096174535,89.09357657,157.83,157.82,4.935e-05]
[1721096174711,123.55357657,157.83,157.82,4.935e-05]
[1721096174911,143.55357657,157.83,157.82,4.935e-05]
[1721096175722,143.55402345,157.83,157.82,4.935e-05]
[1721096176235,44.09402182,157.83,157.82,4.935e-05]
[1721096176550,57.6157,157.83,157.82,4.935e-05]
[1721096177200,47.6157,157.83,157.82,4.935e-05]
[1721096177606,6.3359,157.83,157.82,4.935e-05]
[1721096178153,6.3355,157.84,157.82,4.935e-05]
[1721096178531,6.57173074,157.85,157.82,15.44004935]
[1721096178532,6.3359,157.83,157.82,15.44004935]
[1721096178853,12.90683074,157.85,157.82,15.44004935]
[1721096179557,14.96368411,157.9,157.84,31.0002]
[1721096179751,10.0,157.93,157.87,15.44]
[1721096179936,10.1072084,157.95,157.87,15.44]
[1721096179937,6.3334,157.9,157.87,15.44]
[1721096180140,16.57324928,157.91,157.87,15.44]
[1721096180335,6.3346,157.87,157.86,15.44]
[1721096180530,6.3347,157.86,157.85,21.6801]
[1721096180956,15.44,157.9,157.85,21.6801]
[1721096181132,6.3335,157.89,157.87,15.44]
[1721096181335,6.3339,157.88,157.87,15.44]
[1721096181536,6.3339,157.88,157.86,15.44]
[1721096182265,6.3339,157.88,157.85,6.2401]
[1721096182465,6.3335,157.89,157.85,6.2401]
[1721096182841,6.57324928,157.91,157.85,6.2401]
[1721096183560,6.3323,157.92,157.86,45.0]
[1721096183763,10.1072084,157.95,157.86,45.0]
[1721096183951,12.90670755,157.93,157.86,76.56766327]
[1721096184264,6.3324,157.92,157.86,77.14673509]
[1721096184440,6.57480755,157.93,157.86,75.88]
[1721096184646,6.3327,157.91,157.86,75.88]
[1721096184849,12.90700755,157.93,157.86,75.88]
[1721096185874,12.90700755,157.93,157.86,77.14673185]
[1721096186233,6.57480755,157.93,157.86,75.88]
[1721096187656,6.57480755,157.93,157.86,76.98225654]
[1721096187964,12.90670755,157.93,157.86,76.98225654]
[1721096188259,6.57480755,157.93,157.87,15.7172]
[1721096188451,6.57480755,157.93,157.88,52.67185178]
[1721096189039,6.57480755,157.93,157.89,46.3804]
[1721096189439,6.57480755,157.93,157.9,1.26653768]
[1721096189642,6.57480755,157.93,157.9,46.26653768]
[1721096190048,6.57480755,157.93,157.9,45.0]
[1721096190251,6.57480755,157.93,157.89,46.3804]
[1721096190444,6.57480755,157.93,157.89,15.5004]
[1721096190637,6.3324,157.92,157.89,15.5004]
[1721096190835,6.57480755,157.93,157.89,15.5004]
[1721096191051,12.90680755,157.93,157.89,15.5004]
[1721096191261,6.3323,157.92,157.89,15.5004]
[1721096191464,6.57480755,157.93,157.89,15.5004]
[1721096192180,6.3323,157.92,157.89,15.5004]
[1721096192642,6.57480755,157.93,157.89,15.5004]
[1721096193049,12.90680755,157.93,157.89,15.5004]
[1721096193852,6.3323,157.92,157.89,15.5004]
[1721096194047,6.3327,157.91,157.89,15.5004]
[1721096194945,6.3331,157.9,157.89,15.5004]
[1721096195351,10.0,157.94,157.89,15.5004]
[1721096195551,15.8277,157.96,157.89,15.5004]
[1721096195552,6.57660739,157.92,157.89,15.5004]
[1721096196051,12.90890739,157.92,157.89,15.5004]
[1721096198271,6.3327,157.91,157.89,15.5004]
[1721096198467,6.3331,157.9,157.89,15.5004]
[1721096200378,6.3341,157.88,157.83,22.4373]
[1721096200679,6.333,157.91,157.84,45.0]
[1721096200971,6.3331,157.9,157.84,45.0]
[1721096201772,6.3335,157.89,157.84,45.0]
[1721096205074,6.3335,157.89,157.83,22.4373]
[1721096205075,6.333,157.91,157.83,22.4373]
[1721096205281,6.333,157.91,157.84,45.0]
[1721096205976,12.90984037,157.91,157.84,45.0]
[1721096206351,12.90984037,157.91,157.88,15.43]
[1721096206755,6.57684037,157.91,157.89,15.43]
[1721096207373,12.90964037,157.91,157.89,15.43]
[1721096208060,6.57684037,157.91,157.89,15.43]
[1721096209477,6.57684037,157.91,157.9,15.43]
[1721096209775,12.90954037,157.91,157.9,15.43]
[1721096209968,6.3331,157.9,157.89,15.9533]
[1721096210360,12.90954037,157.91,157.89,31.3833]
[1721096210766,6.3331,157.9,157.89,31.3833]
[1721096210977,6.3331,157.9,157.89,15.9533]
[1721096211284,6.3331,157.9,157.89,31.3833]
[1721096212868,12.90954037,157.91,157.89,31.3833]
[1721096216176,6.3331,157.9,157.89,31.3833]
[1721096216856,6.3345,157.87,157.85,16.1991]
[1721096217155,6.3347,157.86,157.85,16.1991]
[1721096217357,15.43,157.88,157.82,4.935e-05]
[1721096217588,6.3355,157.84,157.82,15.43004935]
[1721096217880,6.3355,157.84,157.82,4.935e-05]
[1721096218076,6.3359,157.83,157.82,4.935e-05]
[1721096218270,6.3355,157.85,157.82,4.935e-05]
[1721096218464,6.3355,157.85,157.82,15.43004935]
[1721096218866,6.3356,157.84,157.82,15.43004935]
[1721096219369,6.3359,157.83,157.82,15.43004935]
[1721096219679,6.3355,157.84,157.82,15.43004935]
[1721096219880,6.56835073,157.87,157.83,15.43]
[1721096220066,6.56835073,157.87,157.86,15.43]
[1721096220381,6.56916595,157.89,157.86,15.43]
[1721096220585,6.56916595,157.89,157.87,15.43]
[1721096220988,6.56916595,157.89,157.88,15.6901]
[1721096221194,10.0,157.93,157.88,31.1201]
[1721096221195,6.3322,157.93,157.88,31.1201]
[1721096221362,6.3323,157.92,157.88,15.6901]
[1721096221560,6.3328,157.91,157.9,15.43]
[1721096221957,6.3323,157.92,157.9,15.43]
[1721096222177,6.3323,157.92,157.91,15.43]
[1721096222370,6.3328,157.91,157.88,15.6901]
[1721096223384,6.55591499,157.93,157.88,15.6901]
[1721096223585,6.3331,157.91,157.88,15.6901]
[1721096223983,6.3325,157.92,157.88,15.6901]
[1721096224788,12.88781499,157.93,157.88,15.6901]
[1721096225187,1.91321027,157.92,157.88,15.6901]
[1721096225371,6.3323,157.92,157.88,15.6901]
[1721096225895,12.88781499,157.93,157.88,15.6901]
[1721096226266,1.9125607,157.92,157.88,15.6901]
[1721096226468,6.3323,157.92,157.88,15.6901]
[1721096226661,6.55591499,157.93,157.88,15.6901]
[1721096228292,12.88791499,157.93,157.88,15.6901]
[1721096228665,6.55591499,157.93,157.88,15.6901]
[1721096229089,12.88821499,157.93,157.88,15.6901]
[1721096229472,6.3325,157.92,157.88,15.6901]
[1721096230185,6.55591499,157.93,157.88,15.6901]
[1721096230186,6.3327,157.91,157.88,15.6901]
[1721096230689,6.3331,157.9,157.88,15.6901]
[1721096231481,6.3335,157.89,157.88,15.6901]
[1721096231678,6.3341,157.88,157.86,6.3032]
[1721096232175,6.3341,157.88,157.84,16.0599]
[1721096232405,10.0,157.88,157.82,6.26394935]
[1721096232574,10.0,157.86,157.82,4.935e-05]
[1721096232769,16.54583801,157.9,157.82,4.935e-05]
[1721096233090,6.3352,157.85,157.82,4.935e-05]
[1721096233295,10.0,157.84,157.82,4.935e-05]
[1721096233503,15.8351,157.88,157.82,4.935e-05]
[1721096233504,6.3359,157.83,157.82,4.935e-05]
[1721096234795,6.3355,157.84,157.82,4.935e-05]
[1721096235692,6.3359,157.83,157.82,4.935e-05]
[1721096239074,6.3355,157.84,157.82,4.935e-05]
[1721096240595,6.3351,157.85,157.82,4.935e-05]
[1721096240999,6.3355,157.84,157.82,4.935e-05]
[1721096241193,6.3359,157.83,157.82,4.935e-05]
[1721096242095,12.88200072,157.83,157.82,4.935e-05]
[1721096242494,22.88200072,157.83,157.82,4.935e-05]
[1721096243185,12.88200072,157.83,157.82,4.935e-05]
[1721096243501,22.88200072,157.83,157.82,4.935e-05]
[1721096244199,38.34200072,157.83,157.82,4.935e-05]
[1721096246502,12.88200072,157.83,157.82,4.935e-05]
[1721096246910,28.34200072,157.83,157.82,4.935e-05]
[1721096247082,38.34200072,157.83,157.82,4.935e-05]
[1721096249081,12.88200072,157.83,157.82,4.935e-05]
[1721096249281,38.34200072,157.83,157.82,4.935e-05]
[1721096249485,93.34200072,157.83,157.82,4.935e-05]
[1721096249676,28.34200072,157.83,157.82,4.935e-05]
[1721096250194,12.88200072,157.83,157.82,4.935e-05]
[1721096250399,28.34200072,157.83,157.82,4.935e-05]
[1721096253207,6.54610072,157.83,157.82,4.935e-05]
[1721096253503,12.88200072,157.83,157.82,4.935e-05]
[1721096254080,38.34200072,157.83,157.82,4.935e-05]
[1721096255602,83.34200072,157.83,157.82,4.935e-05]
[1721096256910,38.34200072,157.83,157.82,4.935e-05]
[1721096258110,122.65170155,157.83,157.82,4.935e-05]
[1721096258609,131.22266903,157.83,157.82,4.935e-05]
[1721096260090,139.44129626,157.83,157.82,4.935e-05]
[1721096260300,146.24937348,157.83,157.82,4.935e-05]
[1721096260510,146.24937348,157.83,157.7,22.9595]
[1721096260511,10.0,157.75,157.7,38.4195]
[1721096260715,10.0,157.75,157.71,15.46]
[1721096261091,6.34,157.73,157.71,15.46]
[1721096262411,6.53888509,157.74,157.7,22.9595]
[1721096262713,6.3404,157.72,157.7,22.9595]
[1721096262886,6.3407,157.71,157.7,22.9595]
[1721096263091,6.3407,157.71,157.67,0.8139605]
[1721096263296,6.3413,157.7,157.67,0.8139605]
[1721096263995,6.3416,157.69,157.67,16.2739605]
[1721096264194,6.3416,157.69,157.67,15.7739605]
[1721096264393,15.46,157.73,157.67,15.7739605]
[1721096264394,6.3411,157.7,157.67,15.7739605]
[1721096265002,6.3408,157.71,157.68,15.46]
[1721096265395,6.3412,157.7,157.68,15.46]
[1721096265600,6.3415,157.69,157.67,0.3139605]
[1721096265916,10.0,157.7,157.67,0.3139605]
[1721096265917,6.3419,157.68,157.67,0.3139605]
[1721096267834,16.3419,157.68,157.67,0.3139605]
[1721096267995,76.8019,157.68,157.67,0.3139605]
[1721096268195,92.2619,157.68,157.67,6.05e-05]
[1721096268520,158.6419,157.68,157.67,6.05e-05]
[1721096268828,100.3919,157.68,157.67,6.05e-05]
[1721096268991,177.7991084,157.68,157.67,6.05e-05]
[1721096269319,196.25073001,157.68,157.67,6.05e-05]
[1721096270208,118.95073001,157.68,157.67,6.05e-05]
[1721096270402,202.60073001,157.68,157.67,6.05e-05]
[1721096270925,118.95073001,157.68,157.67,6.05e-05]
[1721096271221,196.25073001,157.68,157.67,6.05e-05]
[1721096271600,106.44114032,157.68,157.67,6.05e-05]
[1721096271800,183.74114032,157.68,157.67,6.05e-05]
[1721096272206,106.44114032,157.68,157.67,6.05e-05]
[1721096272410,137.43114032,157.68,157.67,6.05e-05]
[1721096272801,127.43114032,157.68,157.67,6.05e-05]
[1721096273815,156.48114032,157.68,157.67,6.05e-05]
[1721096275295,31.44114032,157.68,157.67,6.05e-05]
[1721096275497,31.33393192,157.68,157.67,6.05e-05]
[1721096280307,21.33393192,157.68,157.67,6.05e-05]
[1721096280519,6.54041031,157.68,157.67,6.05e-05]
[1721096280710,6.3411,157.71,157.67,6.05e-05]
[1721096280931,6.54012775,157.7,157.67,6.05e-05]
[1721096281638,10.0,157.75,157.68,15.2928]
[1721096281936,6.3404,157.72,157.68,15.2928]
[1721096282517,12.85611539,157.73,157.68,15.2928]
[1721096282941,6.51621539,157.73,157.69,7.90211072]
[1721096283140,6.3391,157.75,157.69,7.90211072]
[1721096283345,15.10454301,157.76,157.69,6.6401]
[1721096283526,6.53839562,157.76,157.7,15.2928]
[1721096283735,6.3387,157.77,157.71,1.26796692]
[1721096283934,10.0,157.79,157.7,15.2928]
[1721096284136,6.53275688,157.76,157.7,15.2928]
[1721096284328,6.3387,157.76,157.7,15.2928]
[1721096284526,6.53328682,157.76,157.7,15.2928]
[1721096284952,6.3383,157.77,157.71,45.0]
[1721096285153,6.3387,157.76,157.71,45.0]
[1721096285324,6.3387,157.76,157.7,15.2928]
[1721096285528,6.3383,157.77,157.71,45.0]
[1721096285958,6.3383,157.77,157.7,15.2928]
[1721096286262,6.3383,157.77,157.71,1.02746768]
[1721096286565,6.53098972,157.78,157.71,46.02746768]
[1721096286738,6.53098972,157.78,157.7,15.2928]
[1721096287256,6.53098972,157.78,157.71,1.03647623]
[1721096287756,6.3387,157.77,157.71,1.03647623]
[1721096287936,6.53098972,157.78,157.72,15.6167]
[1721096288254,6.3387,157.76,157.72,15.6167]
[1721096288628,12.86918972,157.78,157.72,15.6167]
[1721096288963,6.3387,157.76,157.72,15.6167]
[1721096289153,6.3383,157.77,157.72,15.6167]
[1721096289939,6.3387,157.76,157.72,15.6167]
[1721096290136,10.0,157.76,157.72,15.6167]
[1721096290364,6.3399,157.73,157.72,15.6167]
[1721096291469,10.0,157.76,157.72,15.6167]
[1721096292167,16.53098972,157.78,157.72,15.6167]
[1721096292464,6.3391,157.75,157.72,15.6167]
[1721096292846,6.3388,157.76,157.72,15.6167]
[1721096293040,16.53098972,157.78,157.72,15.6167]
[1721096293650,6.3386,157.77,157.72,15.6167]
[1721096293839,6.3391,157.75,157.72,15.6167]
[1721096294041,16.53098972,157.78,157.72,15.6167]
[1721096294239,6.3388,157.76,157.72,15.6167]
[1721096294460,6.53098972,157.78,157.72,15.6167]
[1721096296436,6.3387,157.76,157.72,15.6167]
[1721096296635,6.3391,157.75,157.72,15.6167]
[1721096297063,6.53098972,157.78,157.72,15.6167]
[1721096297064,6.3387,157.77,157.72,15.6167]
[1721096297365,12.86888972,157.78,157.72,15.6167]
[1721096297583,6.53098972,157.78,157.72,15.6167]
[1721096297935,6.3387,157.76,157.72,15.6167]
[1721096298347,6.3391,157.75,157.72,15.6167]
[1721096298851,12.8606324,157.75,157.72,15.6167]
[1721096299054,6.3396,157.74,157.72,15.6167]
[1721096299253,12.8606324,157.75,157.72,15.6167]
[1721096299451,6.5215324,157.75,157.72,15.6167]
[1721096299770,6.339,157.76,157.72,15.6167]
[1721096299948,12.87075037,157.76,157.72,15.6167]
[1721096300342,6.3391,157.75,157.72,15.6167]
[1721096300666,6.3399,157.73,157.72,15.6167]
[1721096301175,6.3407,157.71,157.69,6.6401]
[1721096301469,6.3411,157.7,157.69,6.6401]
[1721096302055,6.3407,157.71,157.69,6.6401]
[1721096302251,6.3411,157.7,157.68,15.15]
[1721096302658,6.3413,157.7,157.68,15.15]
[1721096303773,6.3415,157.69,157.68,15.15]
[1721096304445,6.3415,157.69,157.67,6.05e-05]
[1721096304642,6.3419,157.68,157.67,6.05e-05]
[1721096305147,10.0,157.69,157.67,6.05e-05]
[1721096305348,10.0,157.71,157.67,6.05e-05]
[1721096305559,6.3419,157.68,157.67,6.05e-05]
[1721096306467,6.3419,157.68,157.64,12.5124665]
[1721096306868,6.3414,157.7,157.64,12.5124665]
[1721096307377,6.3414,157.7,157.65,0.41975363]
[1721096307560,6.3414,157.7,157.65,1.2684732]
[1721096307755,6.3416,157.69,157.64,12.5124665]
[1721096308763,10.0,157.7,157.64,12.5124665]
[1721096308971,6.3424,157.67,157.64,12.5124665]
[1721096309366,6.3428,157.66,157.64,12.5124665]
[1721096309560,6.3431,157.65,157.64,12.5124665]
[1721096310269,12.87413649,157.65,157.64,12.5124665]
[1721096310574,6.53103649,157.65,157.64,12.5124665]
[1721096311170,6.3423,157.67,157.64,12.5124665]
[1721096311779,6.342,157.68,157.64,12.5124665]
[1721096312365,6.3427,157.66,157.64,12.5124665]
[1721096312958,6.53035872,157.7,157.64,12.5124665]
[1721096313582,6.342,157.68,157.64,12.5124665]
[1721096313790,6.3415,157.69,157.64,12.5124665]
[1721096313972,6.3424,157.67,157.64,12.5124665]
[1721096314284,10.0,157.69,157.64,12.5124665]
[1721096314464,6.3428,157.66,157.64,12.5124665]
[1721096314866,6.3431,157.65,157.64,12.5124665]
[1721096316187,6.3424,157.67,157.64,12.5124665]
[1721096317668,6.53035872,157.7,157.64,12.5124665]
[1721096318270,6.342,157.68,157.64,12.5124665]
[1721096318596,6.3424,157.67,157.64,12.5124665]
[1721096319567,6.53035872,157.7,157.64,12.5124665]
[1721096319966,6.3427,157.67,157.64,12.5124665]
[1721096320286,6.3427,157.66,157.65,15.48]
[1721096320472,22.01035872,157.7,157.64,12.5124665]
[1721096320473,6.3431,157.65,157.64,12.5124665]
[1721096322386,12.87037595,157.65,157.64,12.5124665]
[1721096324299,6.52727595,157.65,157.64,12.5124665]
[1721096325097,12.87037595,157.65,157.64,12.5124665]
[1721096327089,6.52727595,157.65,157.6,21.8759]
[1721096327396,6.3443,157.63,157.6,21.8759]
[1721096328006,6.52727595,157.65,157.6,15.475]
[1721096328007,6.3447,157.61,157.6,15.475]
[1721096328375,6.3442,157.63,157.6,15.475]
[1721096328579,6.52727595,157.65,157.6,15.475]
[1721096328798,6.3444,157.62,157.6,15.475]
[1721096329203,6.3447,157.61,157.6,15.475]
[1721096330273,6.3452,157.6,157.56,21.9577]
[1721096330674,6.3448,157.61,157.56,21.9577]
[1721096330882,6.3452,157.6,157.56,21.9577]
[1721096334212,6.3463,157.57,157.56,21.9577]
[1721096334505,6.3455,157.6,157.56,21.4577]
[1721096335307,6.53476799,157.61,157.56,21.4577]
[1721096335520,6.53476799,157.61,157.57,45.0]
[1721096335915,6.3434,157.65,157.57,45.0]
[1721096336108,6.3439,157.63,157.57,45.0]
[1721096336302,6.53268931,157.64,157.57,45.0]
[1721096336303,6.3443,157.62,157.57,45.0]
[1721096336632,6.3449,157.61,157.56,21.4577]
[1721096336804,6.3443,157.62,157.56,21.4577]
[1721096337395,6.53268931,157.64,157.56,21.4577]
[1721096337612,6.53268931,157.64,157.57,45.0]
[1721096337901,6.344,157.63,157.57,45.0]
[1721096340626,6.53268931,157.64,157.57,45.0]
[1721096340831,12.87638931,157.64,157.57,45.0]
[1721096340998,12.87638931,157.64,157.56,21.4577]
[1721096340999,6.3451,157.61,157.56,21.4577]
[1721096341203,6.3451,157.61,157.57,1.26904884]
[1721096341408,6.3451,157.61,157.58,1.2689683]
[1721096341621,6.3444,157.62,157.58,1.2689683]
[1721096342107,16.53268931,157.64,157.56,21.4577]
[1721096342315,6.53268931,157.64,157.57,45.0]
[1721096342527,6.53268931,157.64,157.6,15.49]